bitfinex-derivatives/quotes_BNBF0:USTF0_20250807
["timestamp","ask_amount","ask_price","bid_price","bid_amount"]
[1754585889122,1.199,773.14,773.11,0.87047388]
[1754585891024,1.199,773.14,773.12,0.87047388]
[1754585891226,1.199,773.14,773.11,0.87047388]
[1754585893130,1.199,773.14,773.12,0.87047388]
[1754585893325,1.199,773.14,773.13,0.87047388]
[1754585893928,1.199,773.14,773.12,0.87047388]
[1754585894428,1.199,773.14,773.09,0.87047388]
[1754585894630,1.199,773.14,773.1,0.87047388]
[1754585894931,1.199,773.14,773.05,0.87047388]
[1754585895432,1.199,773.14,773.06,0.87047388]
[1754585895630,1.199,773.14,772.96,0.87047388]
[1754585897329,1.199,773.14,772.88,0.87047388]
[1754585897632,1.199,773.14,772.89,0.87047388]
[1754585898230,1.199,773.14,772.88,0.87047388]
[1754585899829,1.199,773.14,772.85,0.87047388]
[1754585900034,1.199,773.14,772.84,0.87047388]
[1754585900734,1.199,773.14,772.36,0.22504244]
[1754585900735,1.199,773.14,772.86,0.87047388]
[1754585900932,1.199,773.14,772.85,0.87047388]
[1754585903935,1.199,773.14,772.86,0.87047388]
[1754585904135,1.199,773.14,772.88,0.87047388]
[1754585904935,0.926,773.3,772.88,0.87047388]
[1754585906535,0.926,773.3,772.87,0.87047388]
[1754585907436,0.816,773.29,772.87,0.87047388]
[1754585909645,0.816,773.29,772.92,0.87047388]
[1754585909842,0.816,773.29,772.93,0.87047388]
[1754585911946,0.816,773.29,772.95,0.87047388]
[1754585914742,0.816,773.29,772.96,0.87047388]
[1754585915141,0.816,773.29,772.97,0.87047388]
[1754585915549,0.816,773.29,772.95,0.87047388]
[1754585918148,0.816,773.29,772.93,0.87047388]
[1754585918352,0.816,773.29,772.92,0.87047388]
[1754585919850,0.816,773.29,772.9,0.87047388]
[1754585920151,0.816,773.29,772.88,0.87047388]
[1754585921748,0.816,773.29,772.9,0.87047388]
[1754585924051,0.816,773.29,772.92,0.87047388]
[1754585924948,0.816,773.29,772.9,0.87047388]
[1754585925150,0.816,773.29,772.98,0.87047388]
[1754585925450,0.816,773.29,773.01,0.87047388]
[1754585925647,0.816,773.29,773.02,0.87047388]
[1754585927452,0.816,773.29,773.01,0.87047388]
[1754585927651,0.816,773.29,773.02,0.87047388]
[1754585928053,0.816,773.29,773.04,0.87047388]
[1754585928248,0.816,773.29,773.02,0.87047388]
[1754585928754,0.816,773.29,772.95,0.87047388]
[1754585928949,0.816,773.29,772.72,1.13835677]
[1754585928950,0.816,773.29,772.96,0.87047388]
[1754585932361,0.816,773.29,772.98,0.87047388]
[1754585932656,0.816,773.29,773.05,0.87047388]
[1754585932961,0.816,773.29,773.04,0.87047388]
[1754585935362,0.816,773.29,773.03,0.87047388]
[1754585936564,0.816,773.29,773.02,0.87047388]
[1754585937363,0.908,773.28,773.07,0.87047388]
[1754585938161,0.908,773.28,773.08,0.87047388]
[1754585938358,0.908,773.28,773.07,0.87047388]
[1754585938562,0.908,773.28,773.08,0.87047388]
[1754585938963,0.908,773.28,773.0,0.87047388]
[1754585939160,0.908,773.28,772.99,0.87047388]
[1754585939363,0.908,773.28,772.98,0.87047388]
[1754585940865,0.908,773.28,772.98,0.86941319]
[1754585941165,1.009,773.27,772.98,0.86941319]
[1754585942165,1.009,773.27,772.97,0.86941319]
[1754585944663,1.009,773.27,772.98,0.86941319]
[1754585945964,1.009,773.27,772.96,0.86941319]
[1754585946168,1.009,773.27,772.97,0.86941319]
[1754585947066,1.009,773.27,772.96,0.86941319]
[1754585947264,1.009,773.27,772.59,1.70753516]
[1754585947265,1.009,773.27,772.97,0.86941319]
[1754585947664,1.009,773.27,772.96,0.86941319]
[1754585948870,1.009,773.27,772.97,0.86941319]
[1754585950172,1.009,773.27,772.98,0.86941319]
[1754585952172,1.009,773.27,772.99,0.86941319]
[1754585954171,1.009,773.27,773.0,0.86941319]
[1754585955774,1.009,773.27,773.01,0.86941319]
[1754585956377,1.009,773.27,772.94,0.86941319]
[1754585956672,1.009,773.27,772.93,0.86941319]
[1754585956877,1.009,773.27,772.94,0.86941319]
[1754585957074,1.009,773.27,772.93,0.86941319]
[1754585957279,1.009,773.27,772.94,0.86941319]
[1754585957575,1.009,773.27,772.95,0.86941319]
[1754585957876,1.009,773.27,772.96,0.86941319]
[1754585958076,1.009,773.27,772.95,0.86941319]
[1754585958276,1.009,773.27,772.87,0.86941319]
[1754585958979,1.009,773.27,772.85,0.86941319]
[1754585961680,1.009,773.27,772.86,0.86941319]
[1754585962183,1.009,773.27,772.85,0.86941319]
[1754585963388,0.908,773.28,772.85,0.86941319]
[1754585964695,0.908,773.28,772.86,0.86941319]
[1754585965187,0.908,773.28,772.82,0.86941319]
[1754585966390,0.798,773.27,772.82,0.86941319]
[1754585973292,0.798,773.27,772.63,1.13835677]
[1754585973592,0.798,773.27,772.82,0.86983846]
[1754585974392,0.798,773.27,772.83,0.86983846]
[1754585974989,0.798,773.27,772.88,0.86983846]
[1754585975193,0.798,773.27,772.87,0.86983846]
[1754585976391,0.798,773.27,772.85,0.86983846]
[1754585977096,0.798,773.27,772.83,0.86983846]
[1754585979193,0.798,773.27,772.82,0.86983846]
[1754585981693,1.078,773.26,772.82,0.86983846]
[1754585987093,1.078,773.26,772.85,0.86983846]
[1754585987298,1.078,773.26,772.87,0.86983846]
[1754585991300,1.078,773.26,772.88,0.86983846]
[1754585992001,1.078,773.26,772.89,0.86983846]
[1754585993198,1.078,773.26,772.9,0.86983846]
[1754585993901,1.078,773.26,772.79,0.86983846]
[1754585994100,1.078,773.26,772.82,0.86983846]
[1754585994296,1.078,773.26,772.88,0.86983846]
[1754585994502,1.078,773.26,772.89,0.86983846]
[1754585994700,1.078,773.26,772.9,0.86983846]
[1754585995197,1.078,773.26,772.92,0.86983846]
[1754585995901,1.078,773.26,772.93,0.86983846]
[1754585996798,1.078,773.26,772.91,0.86983846]
[1754585997297,1.078,773.26,772.92,0.86983846]
[1754585997601,1.078,773.26,772.95,0.86983846]
[1754585997801,1.078,773.26,772.91,0.86983846]
[1754585998001,1.078,773.26,772.88,0.86983846]
[1754585998401,1.078,773.26,772.86,0.86983846]
[1754585998601,1.078,773.26,772.88,0.86983846]
[1754585999301,1.078,773.26,772.87,0.86983846]
[1754586000898,1.078,773.26,772.83,0.86983846]
[1754586001103,1.078,773.26,772.36,0.22504244]
[1754586001104,1.078,773.26,772.76,0.86983846]
[1754586001305,1.078,773.26,772.65,0.86983846]
[1754586001600,0.85863114,773.25,772.62,0.86983846]
[1754586001800,0.85863114,773.24,772.63,0.86983846]
[1754586002099,1.078,773.26,772.61,0.86983846]
[1754586002302,0.85842596,773.25,772.61,0.86983846]
[1754586002500,1.078,773.26,772.61,0.86983846]
[1754586003304,1.078,773.26,772.62,0.86983846]
[1754586003504,1.078,773.26,772.61,0.86983846]
[1754586004405,1.078,773.26,772.6,0.86983846]
[1754586005001,1.078,773.26,772.61,0.86983846]
[1754586005902,1.078,773.26,772.6,0.86983846]
[1754586006102,1.078,773.26,772.61,0.86983846]
[1754586007007,1.078,773.26,772.6,0.86983846]
[1754586007203,1.078,773.26,772.61,0.86983846]
[1754586007402,1.078,773.26,772.62,0.86983846]
[1754586007609,0.85730254,773.25,772.59,0.86983846]
[1754586007808,1.078,773.26,772.59,0.86983846]
[1754586008108,1.078,773.26,772.58,0.86983846]
[1754586008109,0.85773953,773.25,772.58,0.86983846]
[1754586008308,1.078,773.26,772.36,0.22504244]
[1754586008309,0.85773953,773.24,772.59,0.86983846]
[1754586008506,0.85773953,773.23,772.49,0.86983846]
[1754586008808,0.85773953,773.22,772.52,0.86983846]
[1754586009003,0.85773953,773.21,772.53,0.86983846]
[1754586009208,1.078,773.26,772.57,0.86983846]
[1754586009403,0.85775311,773.25,772.57,0.86983846]
[1754586009604,1.078,773.26,772.58,0.86983846]
[1754586009909,1.078,773.26,772.59,0.86983846]
[1754586011108,1.078,773.26,772.56,0.86983846]
[1754586011306,1.078,773.26,772.59,0.86983846]
[1754586011603,1.078,773.26,772.39,1.13835677]
[1754586011604,1.078,773.26,772.58,0.86983846]
[1754586011805,1.078,773.26,772.6,0.86983846]
[1754586012405,1.078,773.26,772.75,0.86983846]
[1754586013309,1.078,773.26,772.76,0.86983846]
[1754586013610,1.078,773.26,772.77,0.86983846]
[1754586014610,1.078,773.26,772.78,0.86983846]
[1754586014806,1.078,773.26,772.79,0.86983846]
[1754586015211,1.078,773.26,772.8,0.86983846]
[1754586015509,1.078,773.26,772.81,0.86983846]
[1754586015906,1.078,773.26,772.8,0.86983846]
[1754586016308,1.078,773.26,772.79,0.86983846]
[1754586016804,1.078,773.26,772.78,0.86983846]
[1754586017009,1.078,773.26,772.77,0.86983846]
[1754586017405,1.078,773.26,772.78,0.86983846]
[1754586018410,1.078,773.26,772.8,0.86983846]
[1754586018609,1.078,773.26,772.81,0.86983846]
[1754586021108,1.078,773.26,772.83,0.86983846]
[1754586022112,1.078,773.26,772.84,0.86983846]
[1754586022309,1.078,773.26,772.83,0.86983846]
[1754586022513,1.078,773.26,772.84,0.86983846]
[1754586023211,1.078,773.26,772.83,0.86983846]
[1754586023409,1.078,773.26,772.84,0.86983846]
[1754586023609,1.078,773.26,772.83,0.86983846]
[1754586023811,1.078,773.26,772.53,1.70753516]
[1754586023812,1.078,773.26,772.82,0.86983846]
[1754586024008,1.078,773.26,772.81,0.86983846]
[1754586024410,1.078,773.26,772.82,0.86983846]
[1754586024711,1.078,773.26,772.84,0.86983846]
[1754586025410,1.078,773.26,772.83,0.86983846]
[1754586026214,1.078,773.26,772.82,0.86983846]
[1754586026515,1.078,773.26,772.83,0.86983846]
[1754586026717,0.86545203,773.52,772.83,0.86983846]
[1754586026916,0.85877707,773.51,772.83,0.86983846]
[1754586027213,0.85877707,773.5,772.83,0.86983846]
[1754586027412,0.85877707,773.49,772.82,0.86983846]
[1754586027617,0.85877707,773.48,772.82,0.86983846]
[1754586027818,0.85877707,773.47,772.82,0.86983846]
[1754586028118,0.85877707,773.46,772.82,0.86983846]
[1754586028415,0.86545203,773.51,772.82,0.86983846]
[1754586028613,0.85894454,773.5,772.82,0.86983846]
[1754586028914,0.85894454,773.49,772.82,0.86983846]
[1754586029117,0.85894454,773.48,772.82,0.86983846]
[1754586029413,0.85894454,773.48,772.54,1.70753516]
[1754586029414,0.85894454,773.47,772.83,0.86983846]
[1754586029617,0.85894454,773.46,772.83,0.86983846]
[1754586029819,0.86545203,773.49,772.83,0.86983846]
[1754586029820,0.85894454,773.45,772.83,0.86983846]
[1754586030015,0.85894454,773.44,772.83,0.86983846]
[1754586030314,0.85894454,773.43,772.83,0.86983846]
[1754586030519,0.85894454,773.42,772.84,0.86983846]
[1754586030714,0.85894454,773.41,772.83,0.86983846]
[1754586030920,0.85894454,773.4,772.83,0.86983846]
[1754586031216,0.85894454,773.39,772.83,0.86983846]
[1754586031421,0.85894454,773.38,772.83,0.86983846]
[1754586031620,0.85894454,773.37,772.83,0.86983846]
[1754586031817,0.984,773.52,772.84,0.86983846]
[1754586031818,0.85894454,773.36,772.84,0.86983846]
[1754586032015,0.85894454,773.35,772.84,0.86983846]
[1754586032219,0.85894454,773.34,772.84,0.86983846]
[1754586032518,1.84945203,773.52,772.81,0.86983846]
[1754586032815,0.85892625,773.51,772.81,0.86983846]
[1754586033021,0.85892625,773.5,772.81,0.86983846]
[1754586033219,0.85892625,773.49,772.81,0.86983846]
[1754586033421,0.85892625,773.48,772.81,0.86983846]
[1754586033619,0.85892625,773.47,772.81,0.86983846]
[1754586033923,0.85892625,773.46,772.81,0.86983846]
[1754586034121,0.85892625,773.45,772.81,0.86983846]
[1754586034323,0.85892625,773.44,772.81,0.86983846]
[1754586034527,0.85892625,773.43,772.81,0.86983846]
[1754586034823,0.85892625,773.42,772.8,0.86983846]
[1754586035023,0.85892625,773.41,772.8,0.86983846]
[1754586035221,0.85892625,773.4,772.8,0.86983846]
[1754586035424,0.85892625,773.39,772.75,0.86983846]
[1754586035621,0.85892625,773.38,772.74,0.86983846]
[1754586035922,0.85892625,773.37,772.73,0.86983846]
[1754586036124,0.85892625,773.36,772.73,0.86983846]
[1754586036323,0.85892625,773.35,772.73,0.86983846]
[1754586036620,0.85892625,773.34,772.67,0.86983846]
[1754586036823,0.85892625,773.33,772.65,0.86983846]
[1754586037021,0.85892625,773.32,772.61,0.86983846]
[1754586037221,0.86545203,773.47,772.61,0.86983846]
[1754586037422,0.85862527,773.46,772.61,0.86983846]
[1754586037620,0.85862527,773.45,772.62,0.86983846]
[1754586037821,0.86545203,773.42,772.65,0.86983846]
[1754586038021,0.85862527,773.41,772.64,0.86983846]
[1754586038225,0.85862527,773.4,772.65,0.86983846]
[1754586038422,0.85862527,773.39,772.67,0.86983846]
[1754586038627,0.85862527,773.38,772.67,0.86983846]
[1754586038926,0.85862527,773.37,772.67,0.86983846]
[1754586039127,0.85862527,773.36,772.67,0.86983846]
[1754586039328,0.85862527,773.35,772.67,0.86983846]
[1754586039526,0.85862527,773.34,772.67,0.86983846]
[1754586039725,0.85862527,773.33,772.67,0.86983846]
[1754586039929,0.85862527,773.32,772.67,0.86983846]
[1754586040130,0.85862527,773.31,772.67,0.86983846]
[1754586040327,0.85862527,773.3,772.67,0.86983846]
[1754586040532,0.85862527,773.29,772.67,0.86983846]
[1754586040732,0.85862527,773.28,772.67,0.86983846]
[1754586040933,0.85862527,773.27,772.67,0.86983846]
[1754586041228,0.86545203,773.44,772.67,0.86983846]
[1754586041527,0.85855283,773.43,772.69,0.86983846]
[1754586041731,0.85855283,773.42,772.69,0.86983846]
[1754586041931,0.85855283,773.41,772.69,0.86983846]
[1754586042230,0.85855283,773.4,772.69,0.86983846]
[1754586042428,0.85855283,773.39,772.69,0.86983846]
[1754586042629,0.85855283,773.38,772.68,0.86983846]
[1754586042830,0.85855283,773.37,772.68,0.86983846]
[1754586043028,0.85855283,773.36,772.68,0.86983846]
[1754586043228,0.85855283,773.35,772.67,0.86983846]
[1754586043533,0.85855283,773.34,772.67,0.86983846]
[1754586043733,0.85855283,773.33,772.68,0.86983846]
[1754586043934,0.85855283,773.32,772.68,0.86983846]
[1754586044134,0.85855283,773.31,772.68,0.86983846]
[1754586044334,0.85855283,773.3,772.68,0.86983846]
[1754586044532,0.85855283,773.29,772.68,0.86983846]
[1754586044732,0.85855283,773.28,772.68,0.86983846]
[1754586045031,0.85855283,773.27,772.68,0.86983846]
[1754586045235,0.85855283,773.26,772.68,0.86983846]
[1754586045431,0.85855283,773.25,772.68,0.86983846]
[1754586045732,0.86545203,773.44,772.68,0.86983846]
[1754586045936,1.72360107,773.43,772.67,0.86983846]
[1754586046236,1.72360107,773.42,772.68,0.86983846]
[1754586046436,0.85814904,773.41,772.68,0.86983846]
[1754586046638,0.85814904,773.4,772.68,0.86983846]
[1754586046837,0.85814904,773.39,772.67,0.86983846]
[1754586047037,0.85814904,773.38,772.65,0.86983846]
[1754586047237,0.86545203,773.51,772.66,0.86983846]
[1754586047438,1.72385477,773.5,772.66,0.86983846]
[1754586047637,0.85840274,773.49,772.76,0.86983846]
[1754586047835,0.85840274,773.48,772.76,0.86983846]
[1754586048034,0.85840274,773.47,772.76,0.86983846]
[1754586048336,0.85840274,773.46,772.78,0.86983846]
[1754586048540,0.85840274,773.45,772.79,0.86983846]
[1754586048740,0.85840274,773.44,772.79,0.86983846]
[1754586048939,0.85840274,773.43,772.79,0.86983846]
[1754586049141,0.85843763,773.42,772.79,0.86983846]
[1754586049339,0.984,773.52,772.51,0.22502207]
[1754586049340,0.984,773.52,772.8,0.86983846]
[1754586049538,0.85843496,773.51,772.8,0.86983846]
[1754586049841,0.85843496,773.5,772.8,0.86983846]
[1754586050040,0.85843496,773.49,772.8,0.86983846]
[1754586050243,0.85843496,773.48,772.8,0.86983846]
[1754586050539,0.85843496,773.47,772.8,0.86983846]
[1754586050743,0.85843496,773.46,772.84,0.86983846]
[1754586050940,0.984,773.52,772.86,0.86983846]
[1754586051139,0.85848067,773.51,772.86,0.86983846]
[1754586051343,0.85848067,773.5,772.86,0.86983846]
[1754586051643,0.85848067,773.49,772.86,0.86983846]
[1754586051844,0.85848067,773.48,772.86,0.86983846]
[1754586052044,0.85848067,773.47,772.86,0.86983846]
[1754586052245,0.85848067,773.46,772.86,0.86983846]
[1754586052446,0.85836226,773.45,772.87,0.86983846]
[1754586052644,0.86545203,773.61,772.85,0.86983846]
[1754586052840,0.85836224,773.6,772.85,0.86983846]
[1754586053144,0.85836224,773.59,772.85,0.86983846]
[1754586053344,0.85836224,773.58,772.85,0.86983846]
[1754586053539,0.85836224,773.57,772.85,0.86983846]
[1754586053741,0.85836224,773.56,772.85,0.86983846]
[1754586054042,0.85836224,773.55,772.89,0.86983846]
[1754586054244,0.85836224,773.54,772.89,0.86983846]
[1754586054541,0.85828636,773.53,772.9,0.86983846]
[1754586054741,0.85828636,773.52,772.9,0.86983846]
[1754586055041,0.85828636,773.51,772.9,0.86983846]
[1754586055345,0.85828636,773.5,772.9,0.86983846]
[1754586055545,0.85828636,773.49,772.9,0.86983846]
[1754586055746,0.85828636,773.48,772.89,0.86983846]
[1754586055944,0.85828636,773.47,772.89,0.86983846]
[1754586056243,0.875,773.47,772.9,0.86983846]
[1754586057142,0.85847198,773.46,772.9,0.86983846]
[1754586057342,0.875,773.47,772.9,0.86983846]
[1754586057541,0.875,773.47,772.91,0.86983846]
[1754586058547,0.875,773.47,772.9,0.86983846]
[1754586061348,0.85836961,773.46,772.9,0.86983846]
[1754586061548,0.875,773.47,772.9,0.86983846]
[1754586061745,0.875,773.47,772.91,0.86983846]
[1754586062248,0.875,773.47,772.92,0.86983846]
[1754586062545,0.875,773.47,772.93,0.86983846]
[1754586062750,0.875,773.47,772.92,0.86983846]
[1754586063551,0.875,773.47,772.98,0.86983846]
[1754586064454,0.875,773.47,772.97,0.86983846]
[1754586065253,0.875,773.47,772.98,0.86983846]
[1754586065553,0.875,773.47,773.01,0.86983846]
[1754586065949,0.875,773.47,773.03,0.86983846]
[1754586066454,0.875,773.47,773.09,0.86983846]
[1754586066950,0.875,773.47,773.1,0.86983846]
[1754586067350,0.875,773.47,773.09,0.86983846]
[1754586068350,0.875,773.47,773.06,0.86983846]
[1754586068650,0.875,773.47,773.07,0.86983846]
[1754586069054,0.875,773.47,773.06,0.86983846]
[1754586069249,0.875,773.47,773.07,0.86983846]
[1754586070350,0.875,773.47,773.06,0.86983846]
[1754586070850,0.875,773.47,772.91,1.13835677]
[1754586070851,0.875,773.47,772.98,0.86983846]
[1754586071553,0.875,773.47,772.96,0.86983846]
[1754586072250,0.875,773.47,772.97,0.86983846]
[1754586074353,0.875,773.47,772.96,0.86983846]
[1754586074756,0.875,773.47,772.94,0.86983846]
[1754586076352,0.875,773.47,772.93,0.86983846]
[1754586077658,0.875,773.47,772.95,0.86983846]
[1754586077858,0.875,773.47,772.98,0.86983846]
[1754586078158,0.875,773.47,772.97,0.86983846]
[1754586078459,0.875,773.47,772.95,0.86983846]
[1754586079155,0.875,773.47,772.96,0.86983846]
[1754586079761,0.875,773.47,772.95,0.86983846]
[1754586080157,0.875,773.47,772.97,0.86983846]
[1754586080358,0.875,773.47,773.02,0.86983846]
[1754586080758,0.875,773.47,772.83,1.13835677]
[1754586080759,0.875,773.47,773.04,0.86983846]
[1754586080963,0.875,773.47,773.05,0.86983846]
[1754586081456,0.875,773.47,773.04,0.86983846]
[1754586081859,0.875,773.47,773.03,0.86983846]
[1754586082059,0.875,773.47,773.09,0.86983846]
[1754586083365,0.875,773.47,773.08,0.86983846]
[1754586084461,0.875,773.47,773.07,0.86983846]
[1754586085464,0.875,773.47,773.06,0.86983846]
[1754586086360,0.875,773.47,773.05,0.86983846]
[1754586088462,0.875,773.47,773.04,0.86983846]
[1754586089665,0.875,773.47,773.06,0.86983846]
[1754586089868,0.875,773.47,773.07,0.86983846]
[1754586091269,0.875,773.47,773.06,0.86983846]
[1754586091864,0.875,773.47,773.09,0.86983846]
[1754586092265,0.875,773.47,772.51,0.22502207]
[1754586092266,0.875,773.47,773.1,0.86983846]
[1754586092465,0.875,773.47,773.09,0.86983846]
[1754586093568,0.875,773.47,773.08,0.86983846]
[1754586094467,0.875,773.47,773.05,0.86983846]
[1754586094868,0.875,773.47,773.04,0.86983846]
[1754586095165,0.875,773.47,773.03,0.86983846]
[1754586095669,0.875,773.47,772.93,0.86983846]
[1754586095969,0.875,773.47,772.94,0.86983846]
[1754586096865,0.875,773.47,772.79,0.86983846]
[1754586097567,0.875,773.47,772.8,0.86983846]
[1754586098868,0.875,773.47,772.81,0.86983846]
[1754586099166,0.875,773.47,772.82,0.86983846]
[1754586099366,0.875,773.47,772.83,0.86983846]
[1754586100069,0.875,773.47,772.84,0.86983846]
[1754586100273,0.875,773.47,772.85,0.86983846]
[1754586101370,0.875,773.47,772.86,0.86983846]
[1754586102670,0.875,773.47,772.87,0.86983846]
[1754586103474,0.875,773.47,772.93,0.86983846]
[1754586104577,0.875,773.47,772.94,0.86983846]
[1754586104772,0.875,773.47,772.93,0.86983846]
[1754586104970,0.875,773.47,772.94,0.86983846]
[1754586105475,0.875,773.47,772.95,0.86983846]
[1754586106473,0.875,773.47,772.96,0.86983846]
[1754586107375,0.875,773.47,772.98,0.86983846]
[1754586107677,0.875,773.47,772.97,0.86983846]
[1754586107977,0.875,773.47,772.98,0.86983846]
[1754586109172,0.875,773.47,772.99,0.86983846]
[1754586109378,0.875,773.47,773.0,0.86983846]
[1754586109778,0.875,773.47,773.01,0.86983846]
[1754586110480,0.875,773.47,773.0,0.86983846]
[1754586110679,0.875,773.47,772.51,0.22502207]
[1754586110680,0.875,773.47,773.07,0.86983846]
[1754586111081,0.894,773.66,773.07,0.86983846]
[1754586111378,0.85731679,773.65,773.08,0.86983846]
[1754586111580,0.85731679,773.64,773.08,0.86983846]
[1754586111780,0.85731679,773.63,773.07,0.86983846]
[1754586111981,0.85731679,773.62,773.07,0.86983846]
[1754586112277,0.894,773.66,773.07,0.86983846]
[1754586112481,0.894,773.66,772.76,1.70753516]
[1754586112482,0.85740825,773.65,773.08,0.86983846]
[1754586112682,0.85740825,773.64,773.08,0.86983846]
[1754586112882,0.85740825,773.63,773.08,0.86983846]
[1754586113078,0.85740825,773.62,773.08,0.86983846]
[1754586113283,0.8574866,773.61,773.08,0.86983846]
[1754586113483,0.86545203,773.84,773.08,0.86983846]
[1754586113782,1.123,773.6,773.09,0.86983846]
[1754586114285,1.123,773.6,773.05,0.86983846]
[1754586114685,1.123,773.6,773.06,0.86983846]
[1754586114883,0.794,773.59,773.06,0.86983846]
[1754586115184,0.794,773.59,772.87,1.13835677]
[1754586115185,0.794,773.59,773.09,0.86983846]
[1754586115380,0.794,773.59,772.51,0.22502207]
[1754586115381,0.794,773.59,773.1,0.86983846]
[1754586116782,0.794,773.59,773.09,0.86983846]
[1754586116986,0.794,773.59,773.11,0.86983846]
[1754586117182,0.794,773.59,773.1,0.86983846]
[1754586117486,0.794,773.59,773.08,0.86983846]
[1754586117681,0.794,773.59,772.51,0.22502207]
[1754586117682,0.794,773.59,773.05,0.86983846]
[1754586118281,0.794,773.59,773.02,0.86983846]
[1754586118481,0.794,773.59,772.51,0.22502207]
[1754586118482,0.794,773.59,773.01,0.86983846]
[1754586119485,0.794,773.59,773.02,0.86983846]
[1754586121490,0.794,773.59,773.03,0.86983846]
[1754586121790,0.794,773.59,773.04,0.86983846]
[1754586122490,0.794,773.59,773.05,0.86983846]
[1754586125492,0.794,773.59,773.1,0.86983846]
[1754586125792,0.794,773.59,773.06,0.86983846]
[1754586125990,0.794,773.59,773.05,0.86983846]
[1754586126289,0.85816802,773.58,773.06,0.86983846]
[1754586126593,0.85816802,773.57,773.04,0.86983846]
[1754586126789,0.85816802,773.56,773.0,0.86983846]
[1754586127089,0.85816802,773.55,772.86,0.86983846]
[1754586127288,0.85816802,773.54,772.85,0.86983846]
[1754586127489,0.85816802,773.53,772.8,0.86983846]
[1754586127693,0.85816802,773.52,772.78,0.86983846]
[1754586127892,0.794,773.59,772.51,0.22502207]
[1754586127893,0.85816802,773.51,772.77,0.86983846]
[1754586128092,0.85816802,773.5,772.69,0.86983846]
[1754586128290,0.85630456,773.49,772.67,0.86983846]
[1754586128593,0.85630456,773.48,772.64,0.86983846]
[1754586128791,0.86545203,773.38,772.47,0.86983846]
[1754586128993,0.85630456,773.37,772.47,0.86983846]
[1754586129193,0.86545203,773.32,772.39,0.225073]
[1754586129392,0.85630456,773.31,772.39,0.225073]
[1754586129593,1.72175659,773.3,772.39,0.225073]
[1754586129794,0.85630456,773.29,772.39,0.225073]
[1754586130090,0.85630456,773.28,772.33,0.86983846]
[1754586130291,0.85630456,773.27,772.28,1.09497262]
[1754586130494,0.86545203,773.32,772.28,1.09497262]
[1754586130794,0.85486497,773.31,772.28,1.09497262]
[1754586130992,0.85486497,773.3,772.28,1.09497262]
[1754586131191,0.85486497,773.29,772.28,0.22513416]
[1754586131396,0.85486497,773.28,772.28,0.22513416]
[1754586131689,0.85486497,773.27,772.28,0.22513416]
[1754586131894,0.85486497,773.26,772.28,0.22513416]
[1754586132092,0.85486497,773.25,772.28,0.22513416]
[1754586132293,0.85486497,773.24,772.28,0.22513416]
[1754586132493,0.85486497,773.23,772.28,0.22513416]
[1754586132695,0.85486497,773.22,772.28,0.22513416]
[1754586132894,0.85486497,773.21,772.28,0.22513416]
[1754586133092,0.85486497,773.2,772.28,0.22513416]
[1754586133293,0.85486497,773.19,772.28,0.22513416]
[1754586133493,0.85486497,773.18,772.28,0.22513416]
[1754586133690,0.85486497,773.17,772.28,0.22513416]
[1754586133889,0.85486497,773.16,772.28,0.22513416]
[1754586134093,0.85486497,773.15,772.28,0.22513416]
[1754586134292,0.85486497,773.14,772.28,0.22513416]
[1754586134494,0.85486497,773.13,772.28,0.22513416]
[1754586134697,0.85486497,773.12,772.28,0.22513416]
[1754586134894,0.85486497,773.11,772.28,0.22513416]
[1754586135097,0.85486497,773.1,772.28,0.22513416]
[1754586135397,0.85486497,773.09,772.28,0.22513416]
[1754586135598,0.921,773.26,772.28,0.22513416]
[1754586135796,0.85283978,773.25,772.28,0.22513416]
[1754586135999,0.85283978,773.24,772.28,0.22513416]
[1754586136195,0.85283978,773.23,772.28,0.22513416]
[1754586136396,0.85283978,773.22,772.28,0.22513416]
[1754586136597,0.85283978,773.22,772.21,0.86983846]
[1754586136598,0.85283978,773.21,772.19,0.86983846]
[1754586136796,0.85283978,773.2,772.19,0.86983846]
[1754586136996,0.85283978,773.19,772.17,0.86983846]
[1754586137201,0.85283978,773.18,772.07,0.22517349]
[1754586137401,0.85283978,773.17,772.07,0.22517349]
[1754586137697,0.85283978,773.16,771.95,0.86983846]